[Event "Early-Titled-Tuesday-Blitz-June-18-2024"]
[Site "Chess.com"]
[Date "2024.06.18"]
[Round "3"]
[White "Predatoru"]
[Black "SicilianPanzer"]
[Result "0-1"]
[WhiteElo "2558"]
[BlackElo "2353"]
[TimeControl "180+1"]
[EndTime "8:30:44 PDT"]
[Termination "SicilianPanzer won by resignation"]

1. b3 {[%clk 0:03:00.9]} 1... Nf6 {[%clk 0:02:58]} 2. Bb2 {[%clk 0:03:00.7]}
2... g6 {[%clk 0:02:57.9]} 3. c4 {[%clk 0:02:57.8]} 3... Bg7 {[%clk 0:02:57.3]}
4. g3 {[%clk 0:02:58.2]} 4... O-O {[%clk 0:02:56.6]} 5. Bg2 {[%clk 0:02:58.6]}
5... c6 {[%clk 0:02:38]} 6. Nf3 {[%clk 0:02:55.4]} 6... d5 {[%clk 0:02:37.5]} 7.
O-O {[%clk 0:02:55.3]} 7... Bf5 {[%clk 0:02:30.4]} 8. d3 {[%clk 0:02:50.4]} 8...
Qc8 {[%clk 0:02:27.4]} 9. Nbd2 {[%clk 0:02:47.5]} 9... Bh3 {[%clk 0:02:26.1]}
10. Rc1 {[%clk 0:02:47.9]} 10... Bxg2 {[%clk 0:02:24.3]} 11. Kxg2 {[%clk
0:02:48.8]} 11... Qd8 {[%clk 0:02:11.8]} 12. b4 {[%clk 0:02:45.3]} 12... a5
{[%clk 0:02:08.1]} 13. b5 {[%clk 0:02:43.8]} 13... Nbd7 {[%clk 0:02:05.8]} 14.
cxd5 {[%clk 0:02:18.7]} 14... cxd5 {[%clk 0:01:52.4]} 15. e4 {[%clk 0:02:18.8]}
15... a4 {[%clk 0:01:35.8]} 16. e5 {[%clk 0:02:12.2]} 16... Ne8 {[%clk
0:01:24.6]} 17. Re1 {[%clk 0:02:03]} 17... Nc7 {[%clk 0:01:12.3]} 18. Rb1 {[%clk
0:01:45.1]} 18... Nxb5 {[%clk 0:01:10.7]} 19. e6 {[%clk 0:01:45.4]} 19... Bxb2
{[%clk 0:00:37.5]} 20. Rxb2 {[%clk 0:01:46.3]} 20... Nc3 {[%clk 0:00:38.1]} 21.
Qc2 {[%clk 0:01:39.2]} 21... Rc8 {[%clk 0:00:36.7]} 22. exd7 {[%clk 0:01:39.3]}
22... Qxd7 {[%clk 0:00:37.6]} 23. Ne5 {[%clk 0:01:25.9]} 23... Qd6 {[%clk
0:00:21]} 24. Rxb7 {[%clk 0:01:14]} 24... d4 {[%clk 0:00:19.6]} 25. Ndc4 {[%clk
0:01:13.2]} 25... Qd5+ {[%clk 0:00:18.6]} 26. Kg1 {[%clk 0:01:06.9]} 26... Qxb7
{[%clk 0:00:19.5]} 27. h4 {[%clk 0:00:59.6]} 27... f6 {[%clk 0:00:18.8]} 28. Ng4
{[%clk 0:00:57.9]} 28... h5 {[%clk 0:00:11]} 29. Nh2 {[%clk 0:00:53.6]} 29... e5
{[%clk 0:00:11.1]} 30. Nd6 {[%clk 0:00:51.4]} 30... Qd5 {[%clk 0:00:10.7]} 31.
Nxc8 {[%clk 0:00:50]} 31... Rxc8 {[%clk 0:00:11.6]} 32. Qd2 {[%clk 0:00:49.4]}
32... Qxa2 {[%clk 0:00:10.4]} 33. Qh6 {[%clk 0:00:49.4]} 33... Qf7 {[%clk
0:00:10.5]} 34. g4 {[%clk 0:00:49.8]} 34... Qh7 {[%clk 0:00:07.5]} 35. Qd2
{[%clk 0:00:34.3]} 35... hxg4 {[%clk 0:00:07.6]} 36. Nxg4 {[%clk 0:00:35.2]}
36... Qxh4 {[%clk 0:00:07.8]} 37. Nh2 {[%clk 0:00:29.2]} 37... Qg5+ {[%clk
0:00:06.6]} 38. Qxg5 {[%clk 0:00:28.2]} 38... fxg5 {[%clk 0:00:07.5]} 39. Ra1
{[%clk 0:00:28]} 39... Ra8 {[%clk 0:00:06.7]} 40. Nf3 {[%clk 0:00:26.3]} 40...
a3 {[%clk 0:00:06.4]} 41. Nxe5 {[%clk 0:00:26.7]} 41... a2 {[%clk 0:00:06.3]}
42. Nc6 {[%clk 0:00:27.2]} 42... Ra6 {[%clk 0:00:02.7]} 43. Nxd4 {[%clk
0:00:26]} 43... Rb6 {[%clk 0:00:02.8]} 44. Kg2 {[%clk 0:00:22.1]} 44... Rb1
{[%clk 0:00:02]} 45. Nc2 {[%clk 0:00:22.6]} 45... Rb2 {[%clk 0:00:02.3]} 46. Ne3
{[%clk 0:00:20]} 46... Rd2 {[%clk 0:00:02.3]} 47. Kg3 {[%clk 0:00:07.6]} 47...
Rxd3 {[%clk 0:00:03.2]} 48. Kg4 {[%clk 0:00:08.2]} 48... Kg7 {[%clk 0:00:03.5]}
49. Kxg5 {[%clk 0:00:08.2]} 49... Rd2 {[%clk 0:00:04]} 50. f4 {[%clk 0:00:06.9]}
50... Ne4+ {[%clk 0:00:04]} 51. Kg4 {[%clk 0:00:06.6]} 51... Nc5 {[%clk
0:00:04.3]} 52. Nc4 {[%clk 0:00:04.8]} 52... Rc2 {[%clk 0:00:04.7]} 53. Na3
{[%clk 0:00:04.3]} 53... Rb2 {[%clk 0:00:04.2]} 54. Nc4 {[%clk 0:00:04.3]} 54...
Rc2 {[%clk 0:00:03.7]} 55. Na3 {[%clk 0:00:03.5]} 55... Re2 {[%clk 0:00:03.9]}
56. Kf3 {[%clk 0:00:02.9]} 56... Rh2 {[%clk 0:00:04.5]} 57. Kg3 {[%clk
0:00:02.6]} 57... Rb2 {[%clk 0:00:04.3]} 58. Nc4 {[%clk 0:00:02.3]} 58... Rb4
{[%clk 0:00:04.4]} 59. Ne3 {[%clk 0:00:01]} 59... Ra4 {[%clk 0:00:04.8]} 60. Kf3
{[%clk 0:00:01.3]} 60... Nb3 {[%clk 0:00:04.9]} 61. Rxa2 {[%clk 0:00:01.4]}
61... Rxa2 {[%clk 0:00:04.7]} 62. Ke4 {[%clk 0:00:02.3]} 0-1

[Event "Early-Titled-Tuesday-Blitz-June-18-2024"]
[Site "Chess.com"]
[Date "2024.06.18"]
[Round "3"]
[White "Matalon"]
[Black "Marcin"]
[Result "1-0"]
[WhiteElo "2452"]
[BlackElo "2625"]
[TimeControl "180+1"]
[EndTime "8:30:45 PDT"]
[Termination "Matalon won by checkmate"]

1. e4 {[%clk 0:02:53.5]} 1... c5 {[%clk 0:02:58.6]} 2. Nf3 {[%clk 0:02:52.8]}
2... e6 {[%clk 0:02:59.2]} 3. d4 {[%clk 0:02:52.2]} 3... cxd4 {[%clk 0:03:00.1]}
4. Nxd4 {[%clk 0:02:52.3]} 4... Nc6 {[%clk 0:03:00.8]} 5. Nc3 {[%clk 0:02:52]}
5... Qc7 {[%clk 0:03:01.1]} 6. Be3 {[%clk 0:02:52.1]} 6... a6 {[%clk 0:03:01.4]}
7. Bd3 {[%clk 0:02:52]} 7... Nf6 {[%clk 0:03:02]} 8. O-O {[%clk 0:02:52.1]} 8...
Be7 {[%clk 0:02:55.1]} 9. f4 {[%clk 0:02:11.5]} 9... d6 {[%clk 0:02:54.9]} 10.
Qf3 {[%clk 0:02:07.5]} 10... Nxd4 {[%clk 0:02:46]} 11. Bxd4 {[%clk 0:02:06.2]}
11... e5 {[%clk 0:02:46.7]} 12. Be3 {[%clk 0:01:56.5]} 12... Be6 {[%clk
0:02:45.2]} 13. f5 {[%clk 0:01:53.6]} 13... Bd7 {[%clk 0:02:40.2]} 14. Kh1
{[%clk 0:01:48.6]} 14... Bc6 {[%clk 0:02:39.8]} 15. Bg5 {[%clk 0:01:48.5]} 15...
b5 {[%clk 0:02:38.6]} 16. a4 {[%clk 0:01:35.9]} 16... b4 {[%clk 0:02:37.4]} 17.
Bxf6 {[%clk 0:01:33.3]} 17... Bxf6 {[%clk 0:02:19.5]} 18. Nd5 {[%clk 0:01:32.2]}
18... Bxd5 {[%clk 0:02:19.8]} 19. exd5 {[%clk 0:01:32.7]} 19... O-O {[%clk
0:02:17]} 20. Qe4 {[%clk 0:01:29.4]} 20... a5 {[%clk 0:02:16.4]} 21. Bb5 {[%clk
0:01:25]} 21... Qc5 {[%clk 0:02:14]} 22. Bc6 {[%clk 0:01:15.3]} 22... Rab8
{[%clk 0:02:13.7]} 23. Rf3 {[%clk 0:01:14.1]} 23... Qd4 {[%clk 0:02:06.1]} 24.
Qxd4 {[%clk 0:01:07.7]} 24... exd4 {[%clk 0:02:07]} 25. Re1 {[%clk 0:01:04.4]}
25... Be5 {[%clk 0:02:07.6]} 26. b3 {[%clk 0:01:01.5]} 26... g6 {[%clk
0:01:57.7]} 27. g4 {[%clk 0:01:00.9]} 27... Kg7 {[%clk 0:01:57.5]} 28. Kg2
{[%clk 0:00:57.9]} 28... h5 {[%clk 0:01:56.3]} 29. Re4 {[%clk 0:00:47.8]} 29...
Rh8 {[%clk 0:01:51.2]} 30. h3 {[%clk 0:00:44.4]} 30... hxg4 {[%clk 0:01:51.2]}
31. Rxg4 {[%clk 0:00:41.9]} 31... Rh5 {[%clk 0:01:49.4]} 32. fxg6 {[%clk
0:00:36.8]} 32... f5 {[%clk 0:01:42.1]} 33. Rgg3 {[%clk 0:00:27]} 33... Bxg3
{[%clk 0:01:38.5]} 34. Rxg3 {[%clk 0:00:26]} 34... Rd8 {[%clk 0:01:24.4]} 35.
Bb5 {[%clk 0:00:19.4]} 35... Rh6 {[%clk 0:01:23.5]} 36. Bd3 {[%clk 0:00:18.5]}
36... Rxg6 {[%clk 0:01:24]} 37. Bxf5 {[%clk 0:00:18.4]} 37... Rxg3+ {[%clk
0:01:23.9]} 38. Kxg3 {[%clk 0:00:19.3]} 38... Kf6 {[%clk 0:01:23.9]} 39. Bd3
{[%clk 0:00:17.8]} 39... Rg8+ {[%clk 0:01:22.7]} 40. Kf4 {[%clk 0:00:16.6]}
40... Rh8 {[%clk 0:01:17.3]} 41. Kg4 {[%clk 0:00:16]} 41... Rg8+ {[%clk
0:01:17.2]} 42. Kf4 {[%clk 0:00:16.1]} 42... Rh8 {[%clk 0:00:55.8]} 43. Kg4
{[%clk 0:00:15.6]} 43... Ke5 {[%clk 0:00:56.5]} 44. h4 {[%clk 0:00:15.4]} 44...
Kxd5 {[%clk 0:00:56.8]} 45. Kg5 {[%clk 0:00:13.9]} 45... Ke5 {[%clk 0:00:52]}
46. h5 {[%clk 0:00:13.1]} 46... Rg8+ {[%clk 0:00:52.5]} 47. Bg6 {[%clk 0:00:13]}
47... d3 {[%clk 0:00:51.1]} 48. cxd3 {[%clk 0:00:12.4]} 48... d5 {[%clk
0:00:37]} 49. h6 {[%clk 0:00:11.3]} 49... d4 {[%clk 0:00:36]} 50. h7 {[%clk
0:00:11.2]} 50... Rh8 {[%clk 0:00:36.5]} 51. Be4 {[%clk 0:00:11.3]} 51... Rd8
{[%clk 0:00:26.2]} 52. Kg6 {[%clk 0:00:11.1]} 52... Rd6+ {[%clk 0:00:26.4]} 53.
Kg7 {[%clk 0:00:11.1]} 53... Rd7+ {[%clk 0:00:26.9]} 54. Kg8 {[%clk 0:00:11.4]}
54... Rd8+ {[%clk 0:00:27.3]} 55. Kg7 {[%clk 0:00:11.3]} 55... Rd7+ {[%clk
0:00:27.6]} 56. Kh6 {[%clk 0:00:11.2]} 56... Rd6+ {[%clk 0:00:22.4]} 57. Bg6
{[%clk 0:00:09.7]} 57... Rd8 {[%clk 0:00:17.8]} 58. Kg7 {[%clk 0:00:09.8]} 58...
Kf4 {[%clk 0:00:06.6]} 59. h8=Q {[%clk 0:00:08.5]} 59... Rxh8 {[%clk 0:00:07.1]}
60. Kxh8 {[%clk 0:00:08.8]} 60... Ke3 {[%clk 0:00:08]} 61. Kg7 {[%clk
0:00:09.2]} 61... Kd2 {[%clk 0:00:08.5]} 62. Kf6 {[%clk 0:00:09.8]} 62... Kc3
{[%clk 0:00:09.2]} 63. Ke5 {[%clk 0:00:10.5]} 63... Kxb3 {[%clk 0:00:09.6]} 64.
Kxd4 {[%clk 0:00:10.9]} 64... Kxa4 {[%clk 0:00:10.3]} 65. Kc4 {[%clk 0:00:11.4]}
65... Ka3 {[%clk 0:00:10.4]} 66. d4 {[%clk 0:00:11.8]} 66... b3 {[%clk
0:00:11.1]} 67. d5 {[%clk 0:00:12.1]} 67... a4 {[%clk 0:00:11.7]} 68. d6 {[%clk
0:00:12.7]} 68... b2 {[%clk 0:00:12.4]} 69. d7 {[%clk 0:00:13.3]} 69... Ka2
{[%clk 0:00:12.9]} 70. d8=Q {[%clk 0:00:13.3]} 70... a3 {[%clk 0:00:13.8]} 71.
Qd3 {[%clk 0:00:12.5]} 71... b1=Q {[%clk 0:00:13.9]} 72. Qxb1# {[%clk
0:00:12.4]} 1-0

[Event "Early-Titled-Tuesday-Blitz-June-18-2024"]
[Site "Chess.com"]
[Date "2024.06.18"]
[Round "3"]
[White "NM_Antelacus"]
[Black "Orest_Vovk"]
[Result "0-1"]
[WhiteElo "2305"]
[BlackElo "2567"]
[TimeControl "180+1"]
[EndTime "8:30:45 PDT"]
[Termination "Orest_Vovk won by resignation"]

1. e4 {[%clk 0:03:00.9]} 1... Nc6 {[%clk 0:02:57]} 2. d4 {[%clk 0:02:59.8]} 2...
e5 {[%clk 0:02:56.9]} 3. d5 {[%clk 0:02:59.5]} 3... Nce7 {[%clk 0:02:56.9]} 4.
Nf3 {[%clk 0:02:59.7]} 4... Ng6 {[%clk 0:02:56.8]} 5. h4 {[%clk 0:02:59.5]} 5...
h5 {[%clk 0:02:55.9]} 6. Bg5 {[%clk 0:02:59.2]} 6... Nf6 {[%clk 0:02:55.4]} 7.
g3 {[%clk 0:02:51]} 7... Bc5 {[%clk 0:02:54.4]} 8. Bh3 {[%clk 0:02:39.9]} 8...
d6 {[%clk 0:02:54.2]} 9. Bxc8 {[%clk 0:02:38.1]} 9... Qxc8 {[%clk 0:02:54.5]}
10. Qe2 {[%clk 0:02:35.3]} 10... Ng4 {[%clk 0:02:52.5]} 11. Rf1 {[%clk
0:02:30.3]} 11... O-O {[%clk 0:02:51]} 12. Nc3 {[%clk 0:02:27.5]} 12... f5
{[%clk 0:02:51]} 13. O-O-O {[%clk 0:02:11.5]} 13... Bb4 {[%clk 0:02:43.6]} 14.
Bd2 {[%clk 0:01:58.6]} 14... Bxc3 {[%clk 0:02:42.5]} 15. Bxc3 {[%clk 0:01:58.1]}
15... fxe4 {[%clk 0:02:42.9]} 16. Qxe4 {[%clk 0:01:57.1]} 16... Qf5 {[%clk
0:02:40.8]} 17. Ng5 {[%clk 0:01:45.9]} 17... Qxe4 {[%clk 0:02:27.8]} 18. Nxe4
{[%clk 0:01:44.8]} 18... Rf3 {[%clk 0:02:26]} 19. Be1 {[%clk 0:01:34.6]} 19...
Raf8 {[%clk 0:02:25]} 20. Rd2 {[%clk 0:01:31.7]} 20... Ne7 {[%clk 0:01:50.5]}
21. c4 {[%clk 0:01:28.2]} 21... Nf5 {[%clk 0:01:32.7]} 22. Rg1 {[%clk
0:01:17.8]} 22... Nd4 {[%clk 0:01:28.5]} 23. Kd1 {[%clk 0:01:16.5]} 23... a5
{[%clk 0:01:15.8]} 24. Rg2 {[%clk 0:01:14.7]} 24... a4 {[%clk 0:01:15.3]} 25. c5
{[%clk 0:01:06.3]} 25... a3 {[%clk 0:01:13.1]} 26. b3 {[%clk 0:01:03.8]} 26...
dxc5 {[%clk 0:01:10.7]} 27. Nxc5 {[%clk 0:01:03]} 27... Nf6 {[%clk 0:01:05.1]}
28. Ne6 {[%clk 0:00:59.8]} 28... Nxe6 {[%clk 0:01:04.2]} 29. dxe6 {[%clk
0:00:59.4]} 29... Ne4 {[%clk 0:01:02.1]} 30. Rd7 {[%clk 0:00:57.4]} 30... Re8
{[%clk 0:00:54.4]} 31. e7 {[%clk 0:00:54]} 31... Rf7 {[%clk 0:00:52]} 32. Rxc7
{[%clk 0:00:53.7]} 32... Rfxe7 {[%clk 0:00:49.8]} 33. Rxe7 {[%clk 0:00:52.8]}
33... Rxe7 {[%clk 0:00:50.7]} 34. f3 {[%clk 0:00:52.6]} 34... Rd7+ {[%clk
0:00:49.5]} 35. Kc1 {[%clk 0:00:52.6]} 35... Nd6 {[%clk 0:00:45.1]} 36. Rd2
{[%clk 0:00:50.1]} 36... Kf7 {[%clk 0:00:44.9]} 37. Bf2 {[%clk 0:00:47.3]} 37...
Ke6 {[%clk 0:00:43.5]} 38. Bc5 {[%clk 0:00:46.6]} 38... Nf5 {[%clk 0:00:42.2]}
39. Rxd7 {[%clk 0:00:44.4]} 39... Kxd7 {[%clk 0:00:43.1]} 40. g4 {[%clk
0:00:38.6]} 40... hxg4 {[%clk 0:00:36.1]} 41. fxg4 {[%clk 0:00:39.5]} 41... Nxh4
{[%clk 0:00:36.4]} 42. Bxa3 {[%clk 0:00:39.7]} 42... Nf3 {[%clk 0:00:33]} 43.
Kd1 {[%clk 0:00:37.1]} 43... g6 {[%clk 0:00:27]} 44. Ke2 {[%clk 0:00:36.3]}
44... Nh2 {[%clk 0:00:20.2]} 45. g5 {[%clk 0:00:35.8]} 45... Ke6 {[%clk
0:00:20.7]} 46. Bc1 {[%clk 0:00:35]} 46... e4 {[%clk 0:00:16.8]} 47. Ke3 {[%clk
0:00:32.7]} 47... Ke5 {[%clk 0:00:14]} 48. Bb2+ {[%clk 0:00:31.7]} 48... Kf5
{[%clk 0:00:14.3]} 49. Bf6 {[%clk 0:00:28]} 49... Ng4+ {[%clk 0:00:13]} 50. Kd4
{[%clk 0:00:27.9]} 50... Nxf6 {[%clk 0:00:12]} 51. gxf6 {[%clk 0:00:26.8]} 51...
Kxf6 {[%clk 0:00:12.9]} 52. Kxe4 {[%clk 0:00:27]} 52... Ke6 {[%clk 0:00:13.4]}
53. a4 {[%clk 0:00:25.8]} 53... Kd6 {[%clk 0:00:12]} 54. b4 {[%clk 0:00:25.7]}
54... g5 {[%clk 0:00:11.8]} 55. Kf5 {[%clk 0:00:22]} 55... Kd5 {[%clk
0:00:11.7]} 56. Kxg5 {[%clk 0:00:20.9]} 56... Kc4 {[%clk 0:00:12.1]} 57. b5
{[%clk 0:00:19.8]} 57... Kb4 {[%clk 0:00:12.4]} 58. Kf4 {[%clk 0:00:18.9]} 58...
Kxa4 {[%clk 0:00:12.7]} 59. b6 {[%clk 0:00:19.2]} 59... Kb5 {[%clk 0:00:12.8]}
60. Ke4 {[%clk 0:00:17.5]} 60... Kxb6 {[%clk 0:00:13.1]} 61. Kd4 {[%clk
0:00:17.1]} 61... Kb5 {[%clk 0:00:13.3]} 62. Kc3 {[%clk 0:00:16.9]} 62... Ka4
{[%clk 0:00:13.2]} 63. Kb2 {[%clk 0:00:17]} 63... Kb4 {[%clk 0:00:12.4]} 64. Kc2
{[%clk 0:00:17.3]} 64... Ka3 {[%clk 0:00:12.6]} 65. Kb1 {[%clk 0:00:15.5]} 65...
b5 {[%clk 0:00:11.2]} 66. Ka1 {[%clk 0:00:14.3]} 66... b4 {[%clk 0:00:10.1]} 67.
Kb1 {[%clk 0:00:14.2]} 67... Kb3 {[%clk 0:00:09.2]} 68. Kc1 {[%clk 0:00:14.2]}
68... Ka2 {[%clk 0:00:09.4]} 69. Kc2 {[%clk 0:00:14.5]} 69... b3+ {[%clk
0:00:10.3]} 0-1

[Event "Early-Titled-Tuesday-Blitz-June-18-2024"]
[Site "Chess.com"]
[Date "2024.06.18"]
[Round "3"]
[White "blitzking1729"]
[Black "AlbusSevresPotter"]
[Result "1/2-1/2"]
[WhiteElo "2824"]
[BlackElo "2601"]
[TimeControl "180+1"]
[EndTime "8:30:48 PDT"]
[Termination "Game drawn by repetition"]

1. c4 {[%clk 0:02:56.7]} 1... e5 {[%clk 0:02:59.5]} 2. Nc3 {[%clk 0:02:54.3]}
2... Nf6 {[%clk 0:02:59]} 3. Nf3 {[%clk 0:02:53.2]} 3... Nc6 {[%clk 0:02:57.5]}
4. d3 {[%clk 0:02:53.3]} 4... Bb4 {[%clk 0:02:10.2]} 5. Bd2 {[%clk 0:02:44.4]}
5... d6 {[%clk 0:02:08.7]} 6. e3 {[%clk 0:02:41.2]} 6... Qe7 {[%clk 0:02:06.6]}
7. Be2 {[%clk 0:02:39]} 7... O-O {[%clk 0:02:03.8]} 8. O-O {[%clk 0:02:38.5]}
8... e4 {[%clk 0:01:59]} 9. dxe4 {[%clk 0:02:28.3]} 9... Bxc3 {[%clk 0:01:57.4]}
10. Bxc3 {[%clk 0:02:27.2]} 10... Nxe4 {[%clk 0:01:58]} 11. Be1 {[%clk 0:02:27]}
11... Bf5 {[%clk 0:01:54.8]} 12. Nd4 {[%clk 0:02:25.7]} 12... Bg6 {[%clk
0:01:51.6]} 13. Rc1 {[%clk 0:02:21.6]} 13... Qf6 {[%clk 0:01:43.9]} 14. f3
{[%clk 0:02:12.3]} 14... Nxd4 {[%clk 0:01:23.1]} 15. Qxd4 {[%clk 0:02:09.2]}
15... Qxd4 {[%clk 0:01:20.4]} 16. exd4 {[%clk 0:02:09.3]} 16... Nf6 {[%clk
0:01:15.4]} 17. Kf2 {[%clk 0:02:02.4]} 17... Rfe8 {[%clk 0:01:15.2]} 18. Bd2
{[%clk 0:02:00.6]} 18... Re7 {[%clk 0:01:09.9]} 19. Rfe1 {[%clk 0:01:59.4]}
19... Rae8 {[%clk 0:01:10.3]} 20. h4 {[%clk 0:01:50.3]} 20... h6 {[%clk
0:01:01.5]} 21. Rc3 {[%clk 0:01:44.2]} 21... Nd7 {[%clk 0:00:48.8]} 22. Ra3
{[%clk 0:01:25.2]} 22... a6 {[%clk 0:00:40.5]} 23. Rb3 {[%clk 0:01:13.8]} 23...
b6 {[%clk 0:00:39.5]} 24. Re3 {[%clk 0:01:12.1]} 24... c5 {[%clk 0:00:27.7]} 25.
dxc5 {[%clk 0:01:09.4]} 25... Nxc5 {[%clk 0:00:24.3]} 26. Rxe7 {[%clk
0:01:06.2]} 26... Rxe7 {[%clk 0:00:25.2]} 27. b3 {[%clk 0:00:59.6]} 27... Bd3
{[%clk 0:00:16.6]} 28. b4 {[%clk 0:00:29.4]} 28... Rxe2+ {[%clk 0:00:12.6]} 29.
Rxe2 {[%clk 0:00:29.2]} 29... Bxe2 {[%clk 0:00:13.5]} 30. Kxe2 {[%clk
0:00:27.2]} 30... Nd7 {[%clk 0:00:08]} 31. Kd3 {[%clk 0:00:24.6]} 31... Kf8
{[%clk 0:00:07.7]} 32. a4 {[%clk 0:00:24.3]} 32... Ke7 {[%clk 0:00:07.5]} 33.
Bc3 {[%clk 0:00:23.7]} 33... g6 {[%clk 0:00:06.5]} 34. g4 {[%clk 0:00:22.8]}
34... h5 {[%clk 0:00:06]} 35. Ke4 {[%clk 0:00:20.6]} 35... Ke6 {[%clk
0:00:05.9]} 36. g5 {[%clk 0:00:20.6]} 36... Nb8 {[%clk 0:00:03.1]} 37. Bd4
{[%clk 0:00:18.9]} 37... Nc6 {[%clk 0:00:03]} 38. Bc3 {[%clk 0:00:17.8]} 38...
a5 {[%clk 0:00:02.1]} 39. b5 {[%clk 0:00:15.3]} 39... Ne7 {[%clk 0:00:02.3]} 40.
Bd4 {[%clk 0:00:14.6]} 40... d5+ {[%clk 0:00:02.9]} 41. Kd3 {[%clk 0:00:09.5]}
41... dxc4+ {[%clk 0:00:02.2]} 42. Kxc4 {[%clk 0:00:10.2]} 42... Nd5 {[%clk
0:00:03.1]} 43. f4 {[%clk 0:00:10.5]} 43... Kd6 {[%clk 0:00:03.2]} 44. Bf2
{[%clk 0:00:09.3]} 44... Ke6 {[%clk 0:00:02.8]} 45. Bg1 {[%clk 0:00:06.1]} 45...
Kd6 {[%clk 0:00:03.1]} 46. Bd4 {[%clk 0:00:06.8]} 46... Ke6 {[%clk 0:00:03.1]}
47. Be5 {[%clk 0:00:07.5]} 47... Ne3+ {[%clk 0:00:02.7]} 48. Kd4 {[%clk
0:00:06.9]} 48... Nf5+ {[%clk 0:00:03.3]} 49. Ke4 {[%clk 0:00:07.1]} 49... Nd6+
{[%clk 0:00:03.1]} 50. Bxd6 {[%clk 0:00:04.9]} 50... Kxd6 {[%clk 0:00:04]} 51.
f5 {[%clk 0:00:05.5]} 51... Kd7 {[%clk 0:00:01.7]} 52. Ke5 {[%clk 0:00:04]}
52... Ke7 {[%clk 0:00:02.2]} 53. f6+ {[%clk 0:00:03.4]} 53... Kd7 {[%clk
0:00:02.6]} 54. Kd5 {[%clk 0:00:03.4]} 54... Kc7 {[%clk 0:00:03.2]} 55. Ke5
{[%clk 0:00:03.4]} 55... Kd7 {[%clk 0:00:04.1]} 56. Kd5 {[%clk 0:00:03.8]} 56...
Kc7 {[%clk 0:00:04.6]} 57. Ke5 {[%clk 0:00:03.6]} 57... Kd7 {[%clk 0:00:04.9]}
1/2-1/2

[Event "Early-Titled-Tuesday-Blitz-June-18-2024"]
[Site "Chess.com"]
[Date "2024.06.18"]
[Round "3"]
[White "RebelJohnny"]
[Black "gpsji27"]
[Result "1-0"]
[WhiteElo "2584"]
[BlackElo "2320"]
[TimeControl "180+1"]
[EndTime "8:30:53 PDT"]
[Termination "RebelJohnny won by resignation"]

1. e4 {[%clk 0:02:59.9]} 1... e5 {[%clk 0:02:59.6]} 2. Nf3 {[%clk 0:02:59.8]}
2... Nc6 {[%clk 0:02:57.8]} 3. Nc3 {[%clk 0:03:00.3]} 3... Nf6 {[%clk
0:02:55.5]} 4. d4 {[%clk 0:03:00.9]} 4... exd4 {[%clk 0:02:55.4]} 5. Nxd4 {[%clk
0:03:01.8]} 5... Bb4 {[%clk 0:02:55.6]} 6. Nxc6 {[%clk 0:03:02.4]} 6... bxc6
{[%clk 0:02:56.5]} 7. Bd3 {[%clk 0:03:03.1]} 7... d5 {[%clk 0:02:56.9]} 8. exd5
{[%clk 0:03:04]} 8... O-O {[%clk 0:02:57.3]} 9. O-O {[%clk 0:03:04.4]} 9... cxd5
{[%clk 0:02:57.6]} 10. h3 {[%clk 0:03:05]} 10... c6 {[%clk 0:02:58.1]} 11. Qf3
{[%clk 0:03:04.6]} 11... h6 {[%clk 0:02:57.6]} 12. Bf4 {[%clk 0:03:04.1]} 12...
Be6 {[%clk 0:02:57.3]} 13. Ne2 {[%clk 0:02:49.2]} 13... Bd6 {[%clk 0:02:54.8]}
14. Rfe1 {[%clk 0:02:46.6]} 14... Rb8 {[%clk 0:02:53.4]} 15. b3 {[%clk
0:02:46.1]} 15... Re8 {[%clk 0:02:51]} 16. Rad1 {[%clk 0:02:44.8]} 16... c5
{[%clk 0:02:51.1]} 17. c4 {[%clk 0:02:40.7]} 17... d4 {[%clk 0:02:27.6]} 18. Ng3
{[%clk 0:02:36.3]} 18... Bxf4 {[%clk 0:02:24.3]} 19. Qxf4 {[%clk 0:02:37.2]}
19... Qa5 {[%clk 0:02:24.1]} 20. Re2 {[%clk 0:02:20.4]} 20... Bd7 {[%clk
0:02:10.5]} 21. Rdd2 {[%clk 0:01:23.6]} 21... Qc3 {[%clk 0:01:46.6]} 22. Kh2
{[%clk 0:00:53.2]} 22... Rbc8 {[%clk 0:01:00.5]} 23. Bf5 {[%clk 0:00:24]} 23...
Bxf5 {[%clk 0:00:58.9]} 24. Nxf5 {[%clk 0:00:22.3]} 24... d3 {[%clk 0:00:34.1]}
25. Rxe8+ {[%clk 0:00:15.6]} 25... Rxe8 {[%clk 0:00:34]} 26. Qg3 {[%clk
0:00:03.7]} 26... Ne4 {[%clk 0:00:32.9]} 27. Nxh6+ {[%clk 0:00:02.1]} 27... Kh7
{[%clk 0:00:30.8]} 28. Rxd3 {[%clk 0:00:02.7]} 28... Nxg3 {[%clk 0:00:20.1]} 29.
Rxc3 {[%clk 0:00:03.1]} 29... Ne2 {[%clk 0:00:18.6]} 30. Rf3 {[%clk 0:00:01.8]}
30... gxh6 {[%clk 0:00:15.7]} 31. Rxf7+ {[%clk 0:00:02.5]} 31... Kg6 {[%clk
0:00:16.4]} 32. Rxa7 {[%clk 0:00:03.4]} 32... Nc3 {[%clk 0:00:16.7]} 33. Rc7
{[%clk 0:00:03.8]} 33... Re5 {[%clk 0:00:16]} 34. Kg3 {[%clk 0:00:03.7]} 34...
Nxa2 {[%clk 0:00:15]} 35. f4 {[%clk 0:00:04.3]} 35... Re3+ {[%clk 0:00:15]} 36.
Kg4 {[%clk 0:00:04.6]} 36... h5+ {[%clk 0:00:13.3]} 37. Kh4 {[%clk 0:00:05.1]}
37... Rxb3 {[%clk 0:00:08.9]} 38. Rc6+ {[%clk 0:00:05.5]} 38... Kf5 {[%clk
0:00:08.5]} 39. g3 {[%clk 0:00:06.4]} 39... Nb4 {[%clk 0:00:04.7]} 40. Rxc5+
{[%clk 0:00:06.9]} 40... Ke4 {[%clk 0:00:05.2]} 41. Rb5 {[%clk 0:00:07.3]} 41...
Kd4 {[%clk 0:00:04.5]} 42. Rxh5 {[%clk 0:00:04.7]} 42... Kxc4 {[%clk 0:00:04.5]}
43. g4 {[%clk 0:00:05.4]} 43... Nd5 {[%clk 0:00:04.4]} 44. Rf5 {[%clk 0:00:04]}
44... Rf3 {[%clk 0:00:03.5]} 45. Rf8 {[%clk 0:00:01.2]} 45... Nxf4 {[%clk
0:00:02.7]} 46. Rc8+ {[%clk 0:00:01.8]} 46... Kd4 {[%clk 0:00:02.1]} 47. g5
{[%clk 0:00:02.5]} 47... Nxh3 {[%clk 0:00:01.2]} 48. g6 {[%clk 0:00:02.7]} 48...
Nf2 {[%clk 0:00:01.7]} 49. g7 {[%clk 0:00:02.9]} 49... Rh3+ {[%clk 0:00:02.5]}
50. Kg5 {[%clk 0:00:03.1]} 50... Rg3+ {[%clk 0:00:03.2]} 51. Kf6 {[%clk
0:00:03.7]} 51... Ne4+ {[%clk 0:00:03.1]} 52. Ke6 {[%clk 0:00:03.9]} 52... Ng5+
{[%clk 0:00:02.6]} 53. Ke7 {[%clk 0:00:03.7]} 53... Ne4 {[%clk 0:00:01.6]} 54.
g8=Q {[%clk 0:00:04.2]} 54... Rxg8 {[%clk 0:00:02.5]} 55. Rxg8 {[%clk
0:00:04.9]} 55... Kd5 {[%clk 0:00:03.3]} 56. Ra8 {[%clk 0:00:04.7]} 56... Kd4
{[%clk 0:00:04]} 57. Ke6 {[%clk 0:00:04.8]} 57... Nc5+ {[%clk 0:00:04.2]} 58.
Kf5 {[%clk 0:00:05.5]} 58... Ne4 {[%clk 0:00:05]} 59. Rd8+ {[%clk 0:00:06.2]}
59... Ke3 {[%clk 0:00:04.7]} 60. Re8 {[%clk 0:00:06.8]} 1-0